Cogmind - Beta 13 @@@ ROGUE MODE // 2024.06.05 @ 02:36:42 Player: KTG-V3 Result: Destroyed by as-85507 with Assembled Rifle Performance ------------- Evolutions (0) 0 Regions Visited (2) 400 Robots Destroyed (28) 140 Value Destroyed (512) 512 Prototype IDs (3) 60 Alien Tech Used (0) 0 Bonus (0) 0 TOTAL SCORE: 1112 Bonus ------- None Cogmind --------- Core Integrity 0/250 Matter 224/300 Energy 132/250 System Corruption 1% Temperature Cool (0) Movement Treading (320) Ox2 Location -10/Mines Parts ------- > --- POWER (1) -------- Ion Engine > --- PROPULSION (2) --- Light Treads Compact Wheel > --- UTILITY (2) ------ Heat Sink High-capacity Storage Unit > --- WEAPON (2) ------- Beam Cannon Assault Rifle > --- INVENTORY (20) --- Heat Sink High-capacity Matter Pod (200) Advanced Targeting Computer Long-range Tractor Beam Medium Laser EM Pulse Cannon Beam Cannon Assault Rifle Assault Rifle Grenade Launcher Grenade Launcher Rocket Launcher Peak State ------------ > --- POWER ------------ Ion Engine > --- PROPULSION ------- Light Treads Light Treads > --- UTILITY ---------- Heat Sink High-capacity Storage Unit > --- WEAPON ----------- Medium Laser Light Cannon > --- INVENTORY -------- Ion Engine Light Ion Engine Light Treads Aluminum Leg Aluminum Leg Compact Wheel Compact Wheel Large Matter Pod High-capacity Matter Pod Weight Redist. System Medium Laser Assault Rifle Assault Rifle Assault Rifle Light Assault Rifle Light Cannon Grenade Launcher Grenade Launcher Grenade Launcher [Rating: 9] Favorites ----------- Power Ion Engine Engine Ion Engine Propulsion Light Treads Treads Light Treads Wheel Compact Wheel Utility Heat Sink Device Heat Sink Storage High-capacity Storage Unit Weapon Medium Laser Energy Gun Medium Laser Energy Cannon Beam Cannon Ballistic Gun Assault Rifle Ballistic Cannon Light Cannon Build | -11 -10 -10 ------- Run | Yrd Mat Min Slots Evolved . | . . . Power . | . . . Propulsion . | . . . Utility . | . . . Weapon . | . . . Parts Attached 27 | 7 11 9 Power 7 | 1 3 3 Engine 7 | 1 3 3 Core . | . . . Reactor . | . . . Propulsion 7 | 2 2 3 Treads 6 | 2 2 2 Leg . | . . . Wheel 1 | . . 1 Hover . | . . . Flight . | . . . Utility 6 | 2 4 . Device 3 | 1 2 . Storage 3 | 1 2 . Processor . | . . . Hackware . | . . . Protection . | . . . Artifact . | . . . Weapon 7 | 2 2 3 Energy Gun 1 | 1 . . Energy Cannon 1 | . . 1 Ballistic Gun 2 | 1 . 1 Ballistic Cannon 3 | . 2 1 Launcher . | . . . Special Weapon . | . . . Impact Weapon . | . . . Slashing Weapon . | . . . Piercing Weapon . | . . . Special Melee Weapon . | . . . Unidentified Prototypes . | . . . Parts Lost 9 | . 1 8 Power 2 | . . 2 Propulsion 3 | . . 3 Utility 1 | . 1 . Weapon 3 | . . 3 Highest Loss Streak 8 | . 1 8 To Critical Strikes . | . . . Average Slot Usage (%) 98 | . 98 99 Engine 13 | . 14 13 Treads 27 | . 27 27 Device 12 | . 12 14 Storage 14 | . 14 14 Energy Gun 13 | . 14 13 Ballistic Cannon 12 | . 12 13 Naked Turns . | . . . Heaviest Build 51 | 15 51 51 Greatest Support 40 | 40 40 40 Greatest Overweight (x) 2 | 1 2 1 Average Overweight (x) . | . . 1 Largest Inventory Capacity 20 | 8 20 20 Average Capacity 16 | 7 15 20 Most Carried 20 | 6 20 20 Average Carried 14 | 4 13 19 Final Capacity 20 | 8 20 20 Final Carried 20 | 6 20 12 Class Distribution -------------------- 100% | Mutant Dominant Class ---------------- Mutant | -10/Materials Mutant | -10/Mines Resources | -11 -10 -10 ----------- Run | Yrd Mat Min Matter Collected 894 | 272 498 124 Remotely . | . . . Salvage Created 791 | 99 516 176 Parts 59 | 12 37 10 Haulers Intercepted 2 | . 2 . Recyclers Shooed 1 | . 1 . Parts Field Recycled . | . . . Retrieved Matter . | . . . Parts Self-Destructed . | . . . Prevented . | . . . Kills | -11 -10 -10 ------- Run | Yrd Mat Min Combat Hostiles Destroyed 24 | . 14 10 Guns 11 | . 6 5 Cannons 13 | . 8 5 Classes Destroyed 7 | 2 4 1 Worker 2 | 2 . . Tunneler 4 | 3 . 1 Hauler 2 | . 2 . Watcher 2 | . 2 . Swarmer 8 | . 6 2 Grunt 10 | . 8 2 Assembled 6 | . . 6 Best Kill Streak 6 | 4 3 6 Combat Bots Only 6 | . 3 6 Max Kills in Single Turn 1 | 1 1 1 Gunslinging . | . . . Exploded . | . . . Melee . | . . . Uniques/NPCs Destroyed . | . . . Combat | -11 -10 -10 -------- Run | Yrd Mat Min Hostile Shots Fired 115 | . 50 65 Missed 22 | . 13 9 Damage Taken 1384 | . 388 996 Core 252 | . 56 196 Absorbed by Shields . | . . . Regen/Repaired (Parts) 87 | . 87 . Core Remaining (%) 100 | 100 . . Volleys Fired 92 | 15 51 26 Largest 2 | 2 2 2 Hottest 110 | 70 85 110 Shots Fired 178 | 30 99 49 Gun 117 | 30 64 23 Cannon 61 | . 35 26 Launcher . | . . . Special . | . . . Kinetic 87 | 15 51 21 Thermal 91 | 15 48 28 Explosive . | . . . Electromagnetic . | . . . Robot Hit Streak 10 | 4 10 9 Robot Miss Streak 4 | 3 4 3 Penetration Max . | . . . Secondary Targets . | . . . Shots Hit Robots 107 | 18 61 28 Core Hits 48 | 6 24 18 Critical Kills . | . . . Critical Parts Destroyed . | . . . Critical Strikes 10 | . 8 2 Burn 7 | . 6 1 Blast 3 | . 2 1 Melee Attacks . | . . . Impact . | . . . Slashing . | . . . Piercing . | . . . Sneak Attacks . | . . . Combat Hostiles . | . . . Follow-up Attacks . | . . . Damage Inflicted 1564 | 232 904 428 Guns 953 | 232 508 213 Cannons 611 | . 396 215 Explosions . | . . . Melee . | . . . Ramming . | . . . Kinetic 872 | 120 510 242 Thermal 692 | 112 394 186 Explosive . | . . . Electromagnetic . | . . . Impact . | . . . Slashing . | . . . Piercing . | . . . Highest Corruption 1 | . 1 1 Average Corruption 1 | . 1 1 Corruption Purged . | . . . Corruption Blocked . | . . . Effects 6 | . . 6 Message Errors 2 | . . 2 Matter Fused 1 | . . 1 Heat Flow Errors 1 | . . 1 Energy Discharges 1 | . . 1 Data Loss (minor) 1 | . . 1 Overload Shots . | . . . Overflow Damage 10 | . 10 . Projectiles 10 | . 10 . Explosions . | . . . Melee . | . . . Knockbacks 7 | . 4 3 Impact . | . . . Kinetic 7 | . 4 3 Secondary . | . . . Self-Inflicted Damage . | . . . Shots . | . . . Rammed . | . . . Targets Rammed . | . . . Kicked . | . . . Crushed . | . . . Highest Temperature 231 | 90 144 231 Average Temperature 49 | 38 33 107 Received Heat Transfer 183 | . 147 36 Siege Activations . | . . . Robots Corrupted . | . . . Combat Hostiles . | . . . Parts Fried . | . . . Impact Corruptions . | . . . Robots Melted . | . . . Combat Hostiles . | . . . Parts Melted 2 | . 2 . Heat Transferred 2442 | 333 1554 555 Parts Sabotaged . | . . . Parts Stolen . | . . . Parts Stripped . | . . . Power Chain Reactions . | . . . Alert | -11 -10 -10 ------- Run | Yrd Mat Min Peak Influence 303 | 25 303 98 Initial 33 | . 16 33 Average 57 | 8 61 57 Maximum Alert Level 1 | . 1 . Low Security (%) 95 | 100 93 100 Level 1 4 | . 6 . Level 2 . | . . . Level 3 . | . . . Level 4 . | . . . Level 5 . | . . . High Security . | . . . Max Security . | . . . Squads Dispatched 3 | . 2 1 Investigation 3 | . 2 1 Extermination . | . . . Reinforcement . | . . . Assault . | . . . Garrison . | . . . Intercept . | . . . Searches Triggered . | . . . Construction Impeded . | . . . Haulers Reinforced . | . . . Active Scanning Responses . | . . . Cargo Convoy Interrupts . | . . . Stealth | -11 -10 -10 --------- Run | Yrd Mat Min Distress Signals 2 | . 2 . Communications Jammed . | . . . Distress Signals . | . . . Times Spotted 36 | . 21 15 Peak Tracking Total 8 | . 4 8 Tactical Retreats 2 | . . 2 Traps | -11 -10 -10 ------- Run | Yrd Mat Min Traps Triggered 1 | . 1 . Indirectly . | . . . Trap Hack Attempts . | . . . Triggered . | . . . Disarmed . | . . . Reprogrammed . | . . . Reused . | . . . Traps Extracted . | . . . Installed . | . . . Triggered . | . . . Machines | -11 -10 -10 ---------- Run | Yrd Mat Min Machines Disabled . | . . . Max in Single Turn . | . . . Machines Repaired . | . . . Machines Dismantled . | . . . Machines Sabotaged . | . . . Overloaded Fab Kills . | . . . Hacking | -11 -10 -10 --------- Run | Yrd Mat Min Machines Accessed 12 | . 11 1 Terminals 8 | . 8 . Fabricators . | . . . Repair Stations 1 | . 1 . Recycling Units 2 | . 2 . Scanalyzers . | . . . Garrison Access . | . . . Total Hacks 36 | . 35 1 Successful 16 | . 15 1 Failed 20 | . 20 . Catastrophic 3 | . 3 . Database Lockouts . | . . . Manual 18 | . 18 . Terminals 27 | . 27 . Fabricators . | . . . Repair Stations 4 | . 4 . Recycling Units 4 | . 4 . Scanalyzers . | . . . Garrison Access . | . . . Terminal Hacks 12 | . 11 1 Part Schematic 1 | . 1 . Robot Schematic 1 | . 1 . Robot Analysis 2 | . 2 . Prototype ID Bank 2 | . 2 . Open Door 1 | . . 1 Branch Access Points 1 | . 1 . Locate Traps 3 | . 3 . Hauler Manifests 1 | . 1 . Fabricator Hacks . | . . . Repair Station Hacks 3 | . 3 . Scan Component 2 | . 2 . Repair 1 | . 1 . Recycling Unit Hacks 1 | . 1 . Retrieve Components 1 | . 1 . Scanalyzer . | . . . Garrison Access Hacks . | . . . Unauthorized Hacks . | . . . Terminals . | . . . Fabricators . | . . . Repair Stations . | . . . Recycling Units . | . . . Scanalyzers . | . . . Garrison Access . | . . . Data Cores Recovered . | . . . Used . | . . . Hacking Detections 10 | . 10 . Full Trace Events 3 | . 3 . Feedback Events 1 | . 1 . Corruption 1 | . 1 . Feedback Blocked . | . . . Robot Schematics Acquired 1 | . 1 . Robots Built . | . . . Authchips . | . . . Time . | . . . Total Robot Build Rating . | . . . Part Schematics Acquired 1 | . 1 . Parts Built . | . . . Authchips . | . . . Time . | . . . Total Part Build Rating . | . . . Parts Repaired 1 | . 1 . Time 36 | . 36 . Parts Recycled . | . . . Recycled Matter . | . . . Retrieved Matter . | . . . Retrieved Components 3 | . 3 . Parts Scanalyzed . | . . . Part Schematics Acquired . | . . . Parts Damaged . | . . . Bothacking | -11 -10 -10 ------------ Run | Yrd Mat Min Used RIF Installer . | . . . Robots Hacked . | . . . Non-combat . | . . . Combat . | . . . Robot Hacks Applied . | . . . Relay Couplers Released . | . . . Fabnet Peak Effective % . | . . . Robots Rewired . | . . . Allies Hacked . | . . . Hacks Repelled . | . . . Allies | -11 -10 -10 -------- Run | Yrd Mat Min Total Allies . | . . . Largest Group . | . . . Highest-Rated Group . | . . . Highest-Rated Ally . | . . . Total Orders . | . . . Ally Attacks . | . . . Total Damage . | . . . Kills . | . . . Allies Corrupted . | . . . Allies Melted . | . . . Intel | -11 -10 -10 ------- Run | Yrd Mat Min Robot Analysis Total 2 | . 2 . Derelict Logs Recovered 2 | . . 2 Drone Launches . | . . . Drone Recoveries . | . . . Exploration | -11 -10 -10 ------------- Run | Yrd Mat Min Turns Passed 3001 | 162 1971 868 Spaces Moved 1127 | 64 746 317 Core 4 | 4 . . Treads 1123 | 60 746 317 Legs . | . . . Wheels . | . . . Hover . | . . . Flight . | . . . Fastest Speed 50 | 50 160 240 Average Speed 210 | 155 202 240 Slowest Speed 320 | 160 320 240 Overloaded Moves . | . . . Propulsion Burnouts . | . . . Robots Hopped . | . . . Cave-ins Triggered . | . . . Exploration Rate (%) 56 | 4 99 66 Regions Visited 2 Branch Regions 1 Pre-discovered Areas . | . . . Known Exits Taken 1 | . 1 . Unknown Exits Taken 1 | 1 . . Scrap Searched 1 | . . 1 Spaces Dug . | . . . Terrain Destroyed . | . . . Melee . | . . . Projectile . | . . . AOE . | . . . Terrain Rammed . | . . . Walls Destroyed . | . . . Machines Disabled . | . . . Actions | -11 -10 -10 --------- Run | Yrd Mat Min Total 1582 | 94 1107 381 Wait 286 | 2 268 16 Move 1125 | 63 745 317 Hop . | . . . Pick Up 34 | 7 21 6 Fast Attach 11 | 6 5 . Attach 10 | 1 1 8 Detach . | . . . Swap 6 | . 5 1 Drop 18 | . 11 7 Fire 92 | 15 51 26 Melee . | . . . Ram . | . . . Kick . | . . . Crush . | . . . Escape Stasis . | . . . Rewire . | . . . Trap . | . . . Miscellaneous . | . . . Route ------- -11/Scrapyard -10/Materials (discovered 4 exits: [*Mat x3] / *Min) -10/Mines (discovered 2 exits: [*Mat x2]) History --------- Turn | Location | Event 8 | -11/Scrapyard | Discovered new exit (range 15) 163 | -11/Scrapyard | Entered Materials 313 | -10/Materials | Build established: Mutant 334 | -10/Materials | Discovered new exit (range 16) 628 | -10/Materials | Discovered new exit (range 3) 1194 | -10/Materials | Identified exit to Mines 1457 | -10/Materials | Discovered new exit (range 13) 1762 | -10/Materials | Discovered new exit (range 7) 1971 | -10/Materials | Repaired Broken Lgt. Treads? 2134 | -10/Materials | Entered Mines 2147 | -10/Mines | Met a Derelict shopkeep closing up shop 2435 | -10/Mines | Received a Rocket Launcher from a helpful Derelict 2439 | -10/Mines | Learned location of 1 exit from Materials 2446 | -10/Mines | Discovered new exit (range 9) 2555 | -10/Mines | Learned location of 1 exit from Materials 2677 | -10/Mines | Discovered new exit (range 16) 2920 | -10/Mines | Assembled infested the area 2957 | -10/Mines | Core integrity fell below 50% 2975 | -10/Mines | Core integrity fell below 20% 3002 | -10/Mines | Destroyed by as-85507 with Assembled Rifle Last Messages --------------- 02943_ Lgt. Treads destroyed. 02943_ Lgt. Cannon destroyed. 02946_ as-30265 suffers critical hit (Burn). 02946_ as-30265 knocked back. 02949_ as-30265 destroyed. 02949_ as-25120 knocked back. 02954_ Ion Engine destroyed. 02956_ System corrupted: Heat flow error (+233). 02959_ as-95305 knocked back. 02959_ Lgt. Cannon destroyed. 02964_ Ion Engine destroyed. 02966_ as-95305 destroyed. 02967_ Med. Laser destroyed. 02967_ Lgt. Treads destroyed. 02979_ as-41575 destroyed. 02991_ as-82445 destroyed. 02994_ as-80004 destroyed. 02995_ Acquired 12 matter. 02997_ as-25120 destroyed. 02998_ Acquired 6 matter. Map ----- +----------------------------------------------------+ | ???????###### #?????????????????????????? | | ???????# #?????????????????????????? | | ???????# #?????????????????????????? | | # ####?????????????????????????? | | ####### #????????????????????????????? | | ?????????# #????????????????????????????? | | ??????????# #????????????????????????????? | | ??????????# #????????????????????????????? | | ??????????# #????????????????????????????? | | ??????????# #????????????????????????????? | | ????????### #????????????????????????????? | | ????????# #????????????????????????????? | | ???###### ###????????????????????????????? | | ???# #??????????????????????????????? | | ???# ######??????????????????????????????? | | ???# #???????????????????????????????????? | | ???# #???????????????????????????????????? | | ???# #???####????????????????????????????? | | ???# #?### ########?????????????????????? | | ???# ### #?????????????????????? | | ???# ##### #?????????????????????? | | ???##### ##### ###???????????????????? | | ???????# ######??????????????? | | ???????## %#??????????????? | | ????????############ ####a### #???????? | | ???????????????????# #??#@%a% #???????? | | ??????????????????? #??#### #???????? | | ?????????????????? ??????? #??????? | | ?????????????????# ???????? ???????? | | ?????????????????## ???????? #?????? | | ???????????????????# =????????? ##?????? | | ????????????????????##%???????????#??????? | | ??????????????????????# ?????????????????? | | ??????????????????????? ?????????????????? | | ??????????????????????? ?????????????????? | | ???????????????????????? ????????????????? | | ?????????????????????????????????????????? | | ?????????????????????????????????????????? | | ?????????????????????????????????????????? | | ?????????????????????????????????????????? | | ?????????????????????????????????????????? | | ?????????????????????????????????????????? | | ?????????????????????????????????????????? | | ?????????????????????????????????????????? | | | | | | | | | | | | | +----------------------------------------------------+ Best States ------------- Heat Dissipation 35 Energy Generation 10 Energy Capacity 250 Matter Stores 300 Matter Capacity 300 Sight Range 16 Terrain Scan Density 10 Evasion (%) 40 Recoil Reduction 2 Item Schematics ----------------- Huge Storage Unit | -10/Materials | Hacked Robot Schematics ------------------ M-13 Machinist | -10/Materials | Hacked Fabricated ------------ Nothing Alien Tech Used ----------------- None Achievements -------------- None Challenges ------------ None Game ------ Seed NavigationThermalBay Manual? 0 Play Time 00:14:04 Cumulative 134.4 hours Start 2024.06.05 @ 00:50:03 End 2024.06.05 @ 02:36:42 Sessions 2 Manual Loads 0 Difficulty Rogue Special Mode None Game No. 29 Rogue 28 Adventurer 1 Explorer 0 Win Type - Total 11 Types 3/2/4/0/0/0/2/0/0 Lore% 51 Gallery% 72 Achievement% 63 Wizard Run 0 Options --------- Layout 0 ASCII 0 Keyboard 0 Movement Mouse Keybinds 0 Fullscreen 1 Font 18/Terminus Map View 76x50 Zoom Use 0% Tactical HUD 1 Map Filters NONE Filters NONE Steam 0 RUN: a8521c30-e96c-4a89-88a2-afa4233d252c